Cogmind - Beta 13 @@@ ROGUE MODE // 2024.03.31 @ 17:23:01 Player: weedlord420 Result: Destroyed by Y-45 Defender with Heavy Assault Rifle Performance ------------- Evolutions (1) 500 Regions Visited (2) 400 Robots Destroyed (29) 145 Value Destroyed (507) 507 Prototype IDs (7) 140 Alien Tech Used (0) 0 Bonus (11) 11 TOTAL SCORE: 1703 Bonus ------- High Alert Combat Kills 11 Cogmind --------- Core Integrity 0/400 Matter 18/300 Energy 96/100 System Corruption 6% Temperature Cool (15) Movement Core (50) Location -9/Materials Parts ------- > --- POWER (1) -------- (None) > --- PROPULSION (2) --- (None) > --- UTILITY (4) ------ Transport Network Coupler Transport Network Coupler > --- WEAPON (2) ------- High-powered Shotgun > --- INVENTORY (5) ---- Advanced Beam Cannon High-powered Shotgun High-powered Shotgun Peak State ------------ > --- POWER ------------ Light Ion Engine > --- PROPULSION ------- Flight Unit Flight Unit > --- UTILITY ---------- Weight Redist. System Improved Terrain Scanner Transport Network Coupler Transport Network Coupler > --- WEAPON ----------- High-powered Shotgun High-powered Shotgun > --- INVENTORY -------- Flight Unit Improved Medium Laser Advanced Beam Cannon Advanced Beam Cannon Advanced Beam Cannon [Rating: 17] Favorites ----------- Power Ion Engine Engine Ion Engine Propulsion Aluminum Leg Treads Light Treads Leg Aluminum Leg Wheel Wheel Flight Unit Flight Unit Utility Improved Terrain Scanner Device Improved Terrain Scanner Processor Transport Network Coupler Protection Light Armor Plating Weapon Light Assault Rifle Energy Gun Improved EM Shotgun Ballistic Gun Light Assault Rifle Ballistic Cannon Light Cannon Launcher Grenade Launcher Build | -11 -10 -9 ------- Run | Yrd Mat Mat Slots Evolved 2 | . . 2 Power . | . . . Propulsion . | . . . Utility 2 | . . 2 Weapon . | . . . Parts Attached 37 | 7 2 28 Power 3 | 1 . 2 Engine 3 | 1 . 2 Core . | . . . Reactor . | . . . Propulsion 9 | 2 . 7 Treads 1 | . . 1 Leg 2 | 2 . . Wheel 2 | . . 2 Hover . | . . . Flight 4 | . . 4 Utility 7 | 2 . 5 Device 4 | 2 . 2 Storage . | . . . Processor 2 | . . 2 Hackware . | . . . Protection 1 | . . 1 Artifact . | . . . Weapon 18 | 2 2 14 Energy Gun 3 | . . 3 Energy Cannon . | . . . Ballistic Gun 11 | 2 1 8 Ballistic Cannon 2 | . 1 1 Launcher 2 | . . 2 Special Weapon . | . . . Impact Weapon . | . . . Slashing Weapon . | . . . Piercing Weapon . | . . . Special Melee Weapon . | . . . Unidentified Prototypes . | . . . Corrupted Parts 1 | . . 1 System Corruption 6 | . . 6 Parts Lost 17 | . . 17 Power 3 | . . 3 Propulsion 5 | . . 5 Utility 5 | . . 5 Weapon 4 | . . 4 Highest Loss Streak 8 | . . 8 To Critical Strikes . | . . . Average Slot Usage (%) 84 | . 94 79 Engine 10 | . 14 9 Leg 10 | . 28 4 Wheel 3 | . . 4 Flight 7 | . . 10 Device 20 | . 28 17 Processor 6 | . . 8 Protection 2 | . . 3 Energy Gun 2 | . . 3 Ballistic Gun 14 | . 12 15 Ballistic Cannon 3 | . 10 . Launcher 1 | . . 1 Naked Turns . | . . . Heaviest Build 16 | 9 11 16 Greatest Support 20 | 20 20 20 Greatest Overweight (x) 3 | 1 . 3 Average Overweight (x) . | . . . Largest Inventory Capacity 5 | 5 5 5 Average Capacity 5 | 5 5 5 Most Carried 5 | 2 2 5 Average Carried 2 | . 1 3 Final Capacity 5 | 5 5 5 Final Carried 3 | . 1 3 Class Distribution -------------------- 65% | Mutant 34% | Scavenger-Mutant Dominant Class ---------------- Mutant | -10/Materials Scavenger-Mutant | -9/Materials Resources | -11 -10 -9 ----------- Run | Yrd Mat Mat Matter Collected 706 | 139 91 476 Remotely . | . . . Salvage Created 830 | 107 88 635 Parts 58 | 9 6 43 Haulers Intercepted 4 | . . 4 Recyclers Shooed 2 | . . 2 Parts Field Recycled . | . . . Retrieved Matter . | . . . Parts Self-Destructed . | . . . Prevented . | . . . Kills | -11 -10 -9 ------- Run | Yrd Mat Mat Combat Hostiles Destroyed 19 | . 4 15 Guns 15 | . 1 14 Cannons 2 | . 2 . AOE 2 | . 1 1 Classes Destroyed 9 | 2 3 4 Worker 2 | . 1 1 Builder 1 | . . 1 Tunneler 1 | 1 . . Hauler 4 | . . 4 Recycler 1 | 1 . . Watcher 1 | . . 1 Swarmer 12 | . 3 9 Grunt 2 | . 1 1 Sentry 5 | . . 5 Best Kill Streak 4 | 2 4 4 Combat Bots Only 3 | . 3 3 Max Kills in Single Turn 2 | 1 2 2 Gunslinging 1 | . . 1 Exploded 1 | . 1 1 Melee . | . . . Uniques/NPCs Destroyed . | . . . Combat | -11 -10 -9 -------- Run | Yrd Mat Mat Hostile Shots Fired 262 | . 37 225 Missed 92 | . 14 78 Damage Taken 1914 | . 269 1645 Core 455 | . 42 413 Absorbed by Shields . | . . . Core Remaining (%) 91 | 100 83 . Volleys Fired 125 | 14 15 96 Largest 2 | 2 2 2 Hottest 90 | 40 55 90 Shots Fired 216 | 28 28 160 Gun 191 | 28 15 148 Cannon 17 | . 13 4 Launcher 8 | . . 8 Special . | . . . Kinetic 182 | 28 28 126 Thermal . | . . . Explosive 8 | . . 8 Electromagnetic 26 | . . 26 Robot Hit Streak 9 | 9 4 8 Robot Miss Streak 7 | 2 4 7 Penetration Max . | . . . Secondary Targets 3 | . . 3 Max Gunslinging Chain 1 | . . 1 Shots Hit Robots 124 | 19 9 96 Core Hits 55 | 7 6 42 Critical Kills . | . . . Critical Parts Destroyed . | . . . Critical Strikes 1 | . . 1 Corrupt 1 | . . 1 Melee Attacks . | . . . Impact . | . . . Slashing . | . . . Piercing . | . . . Sneak Attacks . | . . . Combat Hostiles . | . . . Follow-up Attacks . | . . . Damage Inflicted 2252 | 170 612 1470 Guns 1334 | 170 26 1138 Cannons 187 | . 121 66 Explosions 731 | . 465 266 Melee . | . . . Ramming . | . . . Kinetic 1299 | 170 147 982 Thermal 511 | . 465 46 Explosive 220 | . . 220 Electromagnetic 222 | . . 222 Impact . | . . . Slashing . | . . . Piercing . | . . . Highest Corruption 6 | . . 6 Average Corruption 6 | . . 6 Corruption Purged . | . . . Corruption Blocked . | . . . Effects 18 | . . 18 Message Errors 3 | . . 3 Matter Fused 9 | . . 9 Heat Flow Errors 2 | . . 2 Data Loss (minor) 1 | . . 1 Data Loss (major) 1 | . . 1 Misfires 1 | . . 1 Weapon Failures 1 | . . 1 Overload Shots . | . . . Overflow Damage 26 | . 25 1 Projectiles . | . . . Explosions 26 | . 25 1 Melee . | . . . Knockbacks 1 | . 1 . Impact . | . . . Kinetic 1 | . 1 . Secondary . | . . . Self-Inflicted Damage 28 | . . 28 Shots 1 | . . 1 Rammed 1 | . . 1 Targets Rammed 1 | . . 1 Kicked . | . . . Crushed . | . . . Highest Temperature 258 | . 44 258 Average Temperature 46 | . 15 53 Received Heat Transfer 573 | . 117 456 Siege Activations . | . . . Robots Corrupted 1 | . . 1 Combat Hostiles . | . . . Parts Fried 2 | . . 2 Impact Corruptions . | . . . Robots Melted . | . . . Combat Hostiles . | . . . Parts Melted . | . . . Heat Transferred 300 | . 250 50 Parts Sabotaged . | . . . Parts Stolen . | . . . Parts Stripped . | . . . Power Chain Reactions 1 | . . 1 Alert | -11 -10 -9 ------- Run | Yrd Mat Mat Peak Influence 476 | 10 111 476 Initial 37 | . 6 37 Average 148 | 2 24 215 Maximum Alert Level 2 | . . 2 Low Security (%) 67 | 100 100 50 Level 1 20 | . . 30 Level 2 12 | . . 18 Level 3 . | . . . Level 4 . | . . . Level 5 . | . . . High Security . | . . . Max Security . | . . . Squads Dispatched 1 | . . 1 Investigation . | . . . Extermination . | . . . Reinforcement 1 | . . 1 Assault . | . . . Garrison . | . . . Intercept . | . . . Searches Triggered . | . . . Construction Impeded . | . . . Haulers Reinforced . | . . . Active Scanning Responses . | . . . Cargo Convoy Interrupts . | . . . Stealth | -11 -10 -9 --------- Run | Yrd Mat Mat Distress Signals 2 | . 1 1 Communications Jammed . | . . . Distress Signals . | . . . Times Spotted 49 | . 15 34 Peak Tracking Total 8 | . 8 6 Tactical Retreats 6 | . . 6 Traps | -11 -10 -9 ------- Run | Yrd Mat Mat Traps Triggered . | . . . Indirectly . | . . . Trap Hack Attempts . | . . . Triggered . | . . . Disarmed . | . . . Reprogrammed . | . . . Reused . | . . . Traps Extracted . | . . . Installed . | . . . Triggered . | . . . Machines | -11 -10 -9 ---------- Run | Yrd Mat Mat Machines Disabled 5 | . 2 3 Max in Single Turn 2 | . 2 2 Machines Repaired . | . . . Machines Dismantled . | . . . Machines Sabotaged . | . . . Overloaded Fab Kills . | . . . Hacking | -11 -10 -9 --------- Run | Yrd Mat Mat Machines Accessed 7 | . 2 5 Terminals 6 | . 2 4 Fabricators . | . . . Repair Stations . | . . . Recycling Units . | . . . Scanalyzers 1 | . . 1 Garrison Access . | . . . Total Hacks 15 | . 7 8 Successful 9 | . 2 7 Failed 6 | . 5 1 Catastrophic 1 | . 1 . Database Lockouts . | . . . Manual . | . . . Terminals 14 | . 7 7 Fabricators . | . . . Repair Stations . | . . . Recycling Units . | . . . Scanalyzers 1 | . . 1 Garrison Access . | . . . Terminal Hacks 8 | . 2 6 Prototype ID Bank 3 | . 1 2 Unreport Threat 3 | . 1 2 Reinforcement Status 1 | . . 1 Registered Components 1 | . . 1 Fabricator Hacks . | . . . Repair Station Hacks . | . . . Recycling Unit Hacks . | . . . Scanalyzer 1 | . . 1 Insert Component 1 | . . 1 Garrison Access Hacks . | . . . Unauthorized Hacks . | . . . Terminals . | . . . Fabricators . | . . . Repair Stations . | . . . Recycling Units . | . . . Scanalyzers . | . . . Garrison Access . | . . . Data Cores Recovered . | . . . Used . | . . . Hacking Detections 2 | . 1 1 Full Trace Events 1 | . 1 . Feedback Events . | . . . Feedback Blocked . | . . . Robot Schematics Acquired . | . . . Robots Built . | . . . Authchips . | . . . Time . | . . . Total Robot Build Rating . | . . . Part Schematics Acquired . | . . . Parts Built . | . . . Authchips . | . . . Time . | . . . Total Part Build Rating . | . . . Parts Repaired . | . . . Time . | . . . Parts Recycled . | . . . Recycled Matter . | . . . Retrieved Matter . | . . . Retrieved Components . | . . . Parts Scanalyzed . | . . . Part Schematics Acquired . | . . . Parts Damaged . | . . . Bothacking | -11 -10 -9 ------------ Run | Yrd Mat Mat Used RIF Installer . | . . . Robots Hacked . | . . . Non-combat . | . . . Combat . | . . . Robot Hacks Applied . | . . . Relay Couplers Released . | . . . Fabnet Peak Effective % . | . . . Robots Rewired . | . . . Allies Hacked . | . . . Hacks Repelled . | . . . Allies | -11 -10 -9 -------- Run | Yrd Mat Mat Total Allies . | . . . Largest Group . | . . . Highest-Rated Group . | . . . Highest-Rated Ally . | . . . Total Orders . | . . . Ally Attacks . | . . . Total Damage . | . . . Kills . | . . . Allies Corrupted . | . . . Allies Melted . | . . . Intel | -11 -10 -9 ------- Run | Yrd Mat Mat Robot Analysis Total . | . . . Derelict Logs Recovered . | . . . Drone Launches . | . . . Drone Recoveries . | . . . Exploration | -11 -10 -9 ------------- Run | Yrd Mat Mat Turns Passed 1239 | 108 314 817 Spaces Moved 1044 | 52 216 776 Core 10 | 8 . 2 Treads 13 | . . 13 Legs 346 | 44 216 86 Wheels 128 | . . 128 Hover . | . . . Flight 547 | . . 547 Fastest Speed 37 | 50 120 37 Average Speed 72 | 113 120 56 Slowest Speed 200 | 120 120 200 Overloaded Moves . | . . . Propulsion Burnouts . | . . . Robots Hopped 1 | . . 1 Cave-ins Triggered . | . . . Exploration Rate (%) 33 | 3 39 58 Regions Visited 2 Branch Regions . Pre-discovered Areas . | . . . Known Exits Taken . | . . . Unknown Exits Taken 2 | 1 1 . Scrap Searched . | . . . Spaces Dug . | . . . Terrain Destroyed 59 | . 10 49 Melee . | . . . Projectile . | . . . AOE 59 | . 10 49 Terrain Rammed . | . . . Walls Destroyed . | . . . Machines Disabled . | . . . Actions | -11 -10 -9 --------- Run | Yrd Mat Mat Total 1336 | 79 246 1011 Wait 84 | . 12 72 Move 1040 | 51 215 774 Hop 1 | . . 1 Pick Up 33 | 7 1 25 Fast Attach 4 | . . 4 Attach 19 | 7 1 11 Detach 1 | . 1 . Swap 14 | . 1 13 Drop 14 | . . 14 Fire 125 | 14 15 96 Melee . | . . . Ram 1 | . . 1 Kick . | . . . Crush . | . . . Escape Stasis . | . . . Rewire . | . . . Trap . | . . . Miscellaneous . | . . . Route ------- -11/Scrapyard -10/Materials -9/Materials (discovered 3 exits: [*Mat x2] / [*Min]) History --------- Turn | Location | Event 15 | -11/Scrapyard | Discovered new exit (range 15) 109 | -11/Scrapyard | Entered Materials 316 | -10/Materials | Build established: Mutant 349 | -10/Materials | Discovered new exit (range 11) 423 | -10/Materials | Entered another Materials area 423 | -9/Materials | Evolved 2 slots: Utility x2 697 | -9/Materials | Discovered new exit (range 3) 818 | -9/Materials | Lost 8 parts (1p2n2u3w) 908 | -9/Materials | Core integrity fell below 50% 1056 | -9/Materials | Discovered new exit (range 16) 1071 | -9/Materials | Discovered new exit (range 16) 1120 | -9/Materials | Build established: Scavenger-Mutant 1237 | -9/Materials | Core integrity fell below 20% 1240 | -9/Materials | Destroyed by Y-45 Defender with Heavy Assault Rifle Last Messages --------------- Connecting with Scanalyzer... >>Insert(Prototype Energy Cannon) Scanning Faulty Adv. Beam Cannon... Ready to analyze. Dropped Faulty Adv. Beam Cannon. YIVPB3QB IXO4,B,M>BZ Lgt. Ion Engine destroyed. Imp. Terrain Scanner destroyed. Critical hit (Burn: +37). System corrupted: FCS attempts to trigger Hpw. Shotgun. System corrupted: Hpw. Shotgun misfires. U-05 Engineer builds a Wall. Acquired 6 matter. R-06 Scavenger collects Lgt. Assault Rifle. Flight Unit destroyed. Critical hit (Burn: +37). System corrupted: Matter fused (-10). Hpw. Shotgun destroyed. Weight Redist. System destroyed. Map ----- +----------------------------------------------------+ | ??????????????????# + | | ???????????????#??# ###########/########## | | ??????????????????# #??#????# # | | ??????????????????# #???##### """ # | | ?????????????? ???# * #???# # "Y" # | | ??????????????????# == #??## < # # | | ????????? ???????######/######??# # # | | ????????? #######=%%[%####### + """ # | | ???????? =[ # ! """ # | | ? ?????? % # """ # | | ???????? # # | | ?????????% ####### ####### ############## | | ?"???????? ?????#???#######?????# #?????# | | ??????????+????????????#?#??#?#?# #?????# | | ??"???????????????????????#?????# #???#?# | | ?????????????????????????????#??# #????## ? | | #####???????"??????#??????#?#???# #?????# ? | | #??????????????????????#??### #?#???######?? | | #?????????"????????####### ## #??########### | | #?????????? ???????# % # #??# # | | #????????????????#?#] ==] # #??# # | | #????????????#????## =]] # #??# # | | #??????????????????# =] # #??# + | | ##########?????????????# # #??# # | | #?????????????#Yg""" # #??# """ """ # | | #####????????????????## @""" # #??# """ """ # | | #?????????????????????# g""" # #??# """ """ # | | #???# ????????????????# # ############## | | #???# ???????????????####+##### # #?????? | | #???# ???????????????## a # """ ##????# | | #???# ################# # """ ####### | | #???? # """ + | | #??##? # """ ## | | #????? ? T # """ ## ### | | #?????????# """ """ """ # ## #?# | | #???????#?# """ """ """ ###+##### ### | | #?????????# """ " " | | ########### | | | | ################ #### | | ##### ## | | ! ?# """ ## | | ## ### ### # """ ## | | ?# ## ## ### # # """ ## | | ?# ## ## #?#! # # """ ## | | ?# ## # #?# # ""# """ !## | | ?# ## ## ### """ + Y"# ##[ | | # # ## """"" # ""# # ! | | ## ### ## """"" # # ##[= | | # ## ## """ """"" ###### ## [ | +----------------------------------------------------+ Best States ------------- Heat Dissipation 28 Energy Generation 10 Energy Capacity 250 Matter Stores 175 Matter Capacity 300 Sight Range 16 Terrain Scan Range 16 Terrain Scan Density 10 Additional Mass Support 6 Armor Coverage 150 Evasion (%) 62 Recoil Reduction 1 Item Schematics ----------------- None Robot Schematics ------------------ None Fabricated ------------ Nothing Alien Tech Used ----------------- None Achievements -------------- None Challenges ------------ None Game ------ Seed AutogunThrowingRay Manual? 0 Play Time 00:20:55 Cumulative 5.1 hours Start 2024.03.31 @ 17:04:34 End 2024.03.31 @ 17:23:01 Sessions 1 Manual Loads 0 Difficulty Rogue Special Mode None Game No. 11 Rogue 10 Adventurer 1 Explorer 0 Win Type - Total 0 Types 0/0/0/0/0/0/0/0/0 Lore% 2 Gallery% 11 Achievement% 11 Wizard Run 0 Options --------- Layout 1 ASCII 0 Keyboard 0 Movement Mouse Keybinds 0 Fullscreen 2 Font 24/Terminus Map View 50x35 Zoom Use 0% Tactical HUD 0 Map Filters NONE Filters NONE Steam 1 RUN: 98fd6190-7a62-4355-839a-3af4fd8fe6fe